[Event "*** Titled Tuesday Blitz"]
[Site "Chess.com"]
[Date "2019.06.04"]
[Round "2"]
[White "IakovUlivar"]
[Black "51616516516"]
[Result "1/2-1/2"]
[WhiteElo "2486"]
[BlackElo "2325"]
[TimeControl "180+2"]
[EndTime "13:25:38 PDT"]
[Termination "Game drawn - insufficient material"]

1. d4 {[%clk 0:03:01.9]} 1... Nf6 {[%clk 0:02:49]} 2. Nf3 {[%clk 0:03:02.6]}
2... g6 {[%clk 0:02:49.1]} 3. Bg5 {[%clk 0:03:00.9]} 3... Ne4 {[%clk 0:02:48.7]}
4. Bf4 {[%clk 0:03:00.8]} 4... Bg7 {[%clk 0:02:49.1]} 5. e3 {[%clk 0:03:00.2]}
5... c5 {[%clk 0:02:48.2]} 6. c3 {[%clk 0:02:59.6]} 6... b6 {[%clk 0:02:46]} 7.
Nbd2 {[%clk 0:02:53.5]} 7... Nxd2 {[%clk 0:02:44.9]} 8. Qxd2 {[%clk 0:02:52]}
8... d6 {[%clk 0:02:46.2]} 9. Bb5+ {[%clk 0:02:48.9]} 9... Nd7 {[%clk
0:02:45.2]} 10. Bc6 {[%clk 0:02:40.6]} 10... Rb8 {[%clk 0:02:44.4]} 11. O-O
{[%clk 0:02:35.4]} 11... O-O {[%clk 0:02:40.6]} 12. e4 {[%clk 0:02:33.3]} 12...
Qc7 {[%clk 0:02:32.9]} 13. d5 {[%clk 0:02:23.2]} 13... b5 {[%clk 0:02:01.4]} 14.
Rac1 {[%clk 0:01:50.9]} 14... Ba6 {[%clk 0:02:01.4]} 15. Rfe1 {[%clk 0:01:50.4]}
15... Rb6 {[%clk 0:01:45.9]} 16. h4 {[%clk 0:01:43.2]} 16... Nb8 {[%clk
0:01:46.3]} 17. e5 {[%clk 0:01:35.8]} 17... Nxc6 {[%clk 0:01:39.8]} 18. exd6
{[%clk 0:01:35.5]} 18... exd6 {[%clk 0:01:38]} 19. dxc6 {[%clk 0:01:36]} 19...
Qxc6 {[%clk 0:01:22.1]} 20. Rcd1 {[%clk 0:01:30.8]} 20... b4 {[%clk 0:01:13.9]}
21. Re7 {[%clk 0:00:53.4]} 21... bxc3 {[%clk 0:01:05.5]} 22. bxc3 {[%clk
0:00:55.3]} 22... Rb7 {[%clk 0:01:06.3]} 23. Rxb7 {[%clk 0:00:30]} 23... Bxb7
{[%clk 0:01:08.2]} 24. Qxd6 {[%clk 0:00:27.2]} 24... Qxd6 {[%clk 0:01:08.1]} 25.
Rxd6 {[%clk 0:00:27.3]} 25... Bxc3 {[%clk 0:00:44.8]} 26. Be3 {[%clk 0:00:25.9]}
26... Bxf3 {[%clk 0:00:37]} 27. gxf3 {[%clk 0:00:26.2]} 27... Rc8 {[%clk
0:00:38.9]} 28. Rd7 {[%clk 0:00:14.7]} 28... a5 {[%clk 0:00:38.5]} 29. Bh6
{[%clk 0:00:12.4]} 29... c4 {[%clk 0:00:36.1]} 30. Kf1 {[%clk 0:00:13]} 30...
Bg7 {[%clk 0:00:33.6]} 31. Bxg7 {[%clk 0:00:11.3]} 31... Kxg7 {[%clk 0:00:35.5]}
32. Ke1 {[%clk 0:00:11.5]} 32... c3 {[%clk 0:00:35.2]} 33. Kd1 {[%clk
0:00:12.8]} 33... Kf6 {[%clk 0:00:24.5]} 34. Kc2 {[%clk 0:00:13.1]} 34... Rc5
{[%clk 0:00:23.8]} 35. Rd4 {[%clk 0:00:12]} 35... Kf5 {[%clk 0:00:20]} 36. Re4
{[%clk 0:00:09.6]} 36... h5 {[%clk 0:00:19.9]} 37. Re7 {[%clk 0:00:07.1]} 37...
f6 {[%clk 0:00:20.6]} 38. Rh7 {[%clk 0:00:07.1]} 38... Kf4 {[%clk 0:00:18.4]}
39. Rh6 {[%clk 0:00:08.4]} 39... Kxf3 {[%clk 0:00:16.7]} 40. Rxg6 {[%clk
0:00:09.6]} 40... Kxf2 {[%clk 0:00:17.9]} 41. Rxf6+ {[%clk 0:00:10.2]} 41... Kg3
{[%clk 0:00:19.1]} 42. Rg6+ {[%clk 0:00:04.2]} 42... Kxh4 {[%clk 0:00:19.7]} 43.
a4 {[%clk 0:00:05.4]} 43... Rc4 {[%clk 0:00:17.1]} 44. Rg8 {[%clk 0:00:04.6]}
44... Kh3 {[%clk 0:00:13.8]} 45. Rg5 {[%clk 0:00:05.6]} 45... h4 {[%clk
0:00:10.2]} 46. Rxa5 {[%clk 0:00:07]} 46... Kh2 {[%clk 0:00:10.6]} 47. Ra8
{[%clk 0:00:06.9]} 47... h3 {[%clk 0:00:11.2]} 48. a5 {[%clk 0:00:08.1]} 48...
Kh1 {[%clk 0:00:11.9]} 49. a6 {[%clk 0:00:07.2]} 49... h2 {[%clk 0:00:13.2]} 50.
a7 {[%clk 0:00:08.3]} 50... Rc7 {[%clk 0:00:07.7]} 51. Kb1 {[%clk 0:00:06.8]}
51... c2+ {[%clk 0:00:08.7]} 52. Kc1 {[%clk 0:00:08]} 52... Kg2 {[%clk
0:00:03.5]} 53. Rg8+ {[%clk 0:00:09]} 53... Kf2 {[%clk 0:00:04.5]} 54. Rh8
{[%clk 0:00:09.1]} 54... Rxa7 {[%clk 0:00:03.7]} 55. Rxh2+ {[%clk 0:00:09.6]}
55... Ke3 {[%clk 0:00:04.8]} 56. Rxc2 {[%clk 0:00:10.5]} 56... Rd7 {[%clk
0:00:04.3]} 57. Rc3+ {[%clk 0:00:11.1]} 57... Ke4 {[%clk 0:00:05]} 58. Kc2
{[%clk 0:00:12.1]} 58... Rd4 {[%clk 0:00:05.5]} 59. Kb3 {[%clk 0:00:12.1]} 59...
Rd3 {[%clk 0:00:06.8]} 60. Rxd3 {[%clk 0:00:12.4]} 60... Kxd3 {[%clk 0:00:08.7]}
1/2-1/2

[Event "*** Titled Tuesday Blitz"]
[Site "Chess.com"]
[Date "2019.06.04"]
[Round "2"]
[White "Karacsonyi_Gellert"]
[Black "bugsbunny444"]
[Result "1/2-1/2"]
[WhiteElo "2535"]
[BlackElo "2503"]
[TimeControl "180+2"]
[EndTime "13:25:43 PDT"]
[Termination "Game drawn by agreement"]

1. e4 {[%clk 0:03:01.9]} 1... e6 {[%clk 0:03:01]} 2. d4 {[%clk 0:03:02.4]} 2...
d5 {[%clk 0:03:02.4]} 3. e5 {[%clk 0:03:03.3]} 3... c5 {[%clk 0:03:03.1]} 4. c3
{[%clk 0:03:04.4]} 4... Nc6 {[%clk 0:03:04.6]} 5. Nf3 {[%clk 0:03:05.5]} 5...
Qb6 {[%clk 0:03:06.1]} 6. a3 {[%clk 0:03:06.7]} 6... f6 {[%clk 0:03:07.3]} 7.
Be2 {[%clk 0:02:47.7]} 7... fxe5 {[%clk 0:02:57.4]} 8. Nxe5 {[%clk 0:02:48]}
8... Nf6 {[%clk 0:02:54]} 9. O-O {[%clk 0:02:48]} 9... Bd6 {[%clk 0:02:49.6]}
10. Bf4 {[%clk 0:02:23.4]} 10... O-O {[%clk 0:01:38.7]} 11. dxc5 {[%clk
0:02:11.7]} 11... Bxc5 {[%clk 0:01:32.8]} 12. Nd3 {[%clk 0:01:51.6]} 12... Be7
{[%clk 0:01:00.9]} 13. Nd2 {[%clk 0:01:44.5]} 13... Bd7 {[%clk 0:00:55.7]} 14.
Nf3 {[%clk 0:01:43.9]} 14... Rae8 {[%clk 0:00:55.6]} 15. Qd2 {[%clk 0:01:36.7]}
15... Ne4 {[%clk 0:00:56.3]} 16. Qe3 {[%clk 0:01:29.7]} 16... Qd8 {[%clk
0:00:44.3]} 17. Nd2 {[%clk 0:01:18.5]} 17... e5 {[%clk 0:00:42]} 18. Nxe5 {[%clk
0:00:57.2]} 18... Bc5 {[%clk 0:00:41.9]} 19. Qd3 {[%clk 0:00:28]} 19... Rxf4
{[%clk 0:00:37.4]} 20. Qxd5+ {[%clk 0:00:23.1]} 20... Be6 {[%clk 0:00:34.5]} 21.
Qxd8 {[%clk 0:00:18.7]} 21... Rxd8 {[%clk 0:00:35.9]} 22. Nd3 {[%clk 0:00:13.5]}
22... Rxd3 {[%clk 0:00:13.8]} 23. Nxe4 {[%clk 0:00:14.5]} 23... Rd5 {[%clk
0:00:08.4]} 24. c4 {[%clk 0:00:16]} 24... Re5 {[%clk 0:00:08.7]} 25. Nc3 {[%clk
0:00:14.5]} 25... Nd4 {[%clk 0:00:08.9]} 26. Bd3 {[%clk 0:00:14.8]} 26... Bf5
{[%clk 0:00:06.3]} 27. Rad1 {[%clk 0:00:13.1]} 27... Bxd3 {[%clk 0:00:06.7]} 28.
Rxd3 {[%clk 0:00:15]} 28... Ne2+ {[%clk 0:00:07.6]} 29. Nxe2 {[%clk 0:00:15.2]}
29... Rxe2 {[%clk 0:00:09.5]} 30. Rd8+ {[%clk 0:00:13.5]} 30... Rf8 {[%clk
0:00:10.3]} 31. Rxf8+ {[%clk 0:00:13.2]} 31... Kxf8 {[%clk 0:00:11.5]} 32. b4
{[%clk 0:00:14.9]} 32... Bd4 {[%clk 0:00:09.6]} 33. Rd1 {[%clk 0:00:15.8]} 33...
Bxf2+ {[%clk 0:00:10.2]} 34. Kf1 {[%clk 0:00:17.2]} 34... Ra2 {[%clk 0:00:11.7]}
35. Rd7 {[%clk 0:00:18.2]} 35... Bh4 {[%clk 0:00:06.1]} 36. g3 {[%clk
0:00:15.5]} 36... Bf6 {[%clk 0:00:05.7]} 37. Rxb7 {[%clk 0:00:13.9]} 37... Rxa3
{[%clk 0:00:07.1]} 38. c5 {[%clk 0:00:15.3]} 38... a6 {[%clk 0:00:04.5]} 39. c6
{[%clk 0:00:16.3]} 39... Be5 {[%clk 0:00:03]} 40. c7 {[%clk 0:00:10.6]} 40...
Bxc7 {[%clk 0:00:04.1]} 41. Rxc7 {[%clk 0:00:11.7]} 41... Rb3 {[%clk 0:00:05.5]}
42. Rb7 {[%clk 0:00:11.6]} 42... a5 {[%clk 0:00:05.2]} 43. b5 {[%clk 0:00:10.4]}
43... a4 {[%clk 0:00:06.7]} 44. Ra7 {[%clk 0:00:08]} 44... Rxb5 {[%clk 0:00:06]}
45. Rxa4 {[%clk 0:00:09.6]} 45... Rb2 {[%clk 0:00:07.3]} 46. h3 {[%clk
0:00:09.3]} 46... Kf7 {[%clk 0:00:06.8]} 47. Rf4+ {[%clk 0:00:10.5]} 47... Kg6
{[%clk 0:00:07.9]} 48. Rf2 {[%clk 0:00:11.6]} 48... Rxf2+ {[%clk 0:00:08]} 49.
Kxf2 {[%clk 0:00:12.9]} 49... Kf5 {[%clk 0:00:09.9]} 50. Kf3 {[%clk 0:00:13.9]}
50... h5 {[%clk 0:00:10.4]} 51. g4+ {[%clk 0:00:11]} 51... hxg4+ {[%clk
0:00:11.4]} 52. hxg4+ {[%clk 0:00:12.3]} 52... Ke5 {[%clk 0:00:12.5]} 53. g5
{[%clk 0:00:07.4]} 53... Kf5 {[%clk 0:00:13.5]} 54. g6 {[%clk 0:00:08.7]} 54...
Kxg6 {[%clk 0:00:14.7]} 55. Kg4 {[%clk 0:00:09.9]} 55... Kh6 {[%clk 0:00:13.5]}
56. Kh4 {[%clk 0:00:11]} 56... Kg6 {[%clk 0:00:14.8]} 57. Kg4 {[%clk 0:00:12.1]}
57... Kf6 {[%clk 0:00:14.3]} 58. Kf4 {[%clk 0:00:13.2]} 58... Ke6 {[%clk
0:00:10.3]} 59. Kg5 {[%clk 0:00:13.6]} 59... Kf7 {[%clk 0:00:11.8]} 60. Kf5
{[%clk 0:00:12.5]} 60... Ke7 {[%clk 0:00:10.3]} 61. Kg6 {[%clk 0:00:13.2]} 61...
Kf8 {[%clk 0:00:11.7]} 62. Kg5 {[%clk 0:00:14.5]} 62... Kf7 {[%clk 0:00:12.1]}
63. Kf5 {[%clk 0:00:15.6]} 63... g6+ {[%clk 0:00:12.1]} 64. Kg5 {[%clk
0:00:16.6]} 64... Kg7 {[%clk 0:00:13.1]} 1/2-1/2

[Event "*** Titled Tuesday Blitz"]
[Site "Chess.com"]
[Date "2019.06.04"]
[Round "2"]
[White "TristanCalistri"]
[Black "AsaHoffmann"]
[Result "1-0"]
[WhiteElo "2244"]
[BlackElo "2178"]
[TimeControl "180+2"]
[EndTime "13:25:46 PDT"]
[Termination "TristanCalistri won on time"]

1. e4 {[%clk 0:03:01.9]} 1... e5 {[%clk 0:02:59.1]} 2. Nf3 {[%clk 0:03:02.3]}
2... Nc6 {[%clk 0:02:58.4]} 3. Bc4 {[%clk 0:03:02.6]} 3... Nf6 {[%clk
0:02:53.4]} 4. d3 {[%clk 0:03:03.6]} 4... Bc5 {[%clk 0:02:48.7]} 5. c3 {[%clk
0:03:03.8]} 5... Bb6 {[%clk 0:02:48.3]} 6. Bb3 {[%clk 0:03:02.1]} 6... d6 {[%clk
0:02:47.9]} 7. Nbd2 {[%clk 0:03:02.4]} 7... O-O {[%clk 0:02:43.7]} 8. Nc4 {[%clk
0:03:03]} 8... Be6 {[%clk 0:02:40.6]} 9. a4 {[%clk 0:03:00.9]} 9... h6 {[%clk
0:02:24]} 10. O-O {[%clk 0:02:30]} 10... d5 {[%clk 0:02:15.2]} 11. exd5 {[%clk
0:02:18]} 11... Bxd5 {[%clk 0:02:11]} 12. Ncxe5 {[%clk 0:02:07]} 12... Re8
{[%clk 0:02:06.4]} 13. d4 {[%clk 0:02:02.9]} 13... Nxe5 {[%clk 0:02:01]} 14.
Nxe5 {[%clk 0:01:59.2]} 14... c5 {[%clk 0:01:57.4]} 15. a5 {[%clk 0:01:09]}
15... Bc7 {[%clk 0:01:53.6]} 16. Bxd5 {[%clk 0:01:09.2]} 16... Qxd5 {[%clk
0:01:51.1]} 17. Nf3 {[%clk 0:01:05.6]} 17... Rad8 {[%clk 0:01:46.7]} 18. Qc2
{[%clk 0:00:47.2]} 18... cxd4 {[%clk 0:01:43.5]} 19. Nxd4 {[%clk 0:00:48.2]}
19... Bxa5 {[%clk 0:01:35.9]} 20. Bf4 {[%clk 0:00:39.4]} 20... Bb6 {[%clk
0:01:33.7]} 21. Rad1 {[%clk 0:00:36.4]} 21... Qe4 {[%clk 0:01:30.6]} 22. Qc1
{[%clk 0:00:30.6]} 22... Bxd4 {[%clk 0:01:28]} 23. cxd4 {[%clk 0:00:29.8]} 23...
Rxd4 {[%clk 0:01:26.6]} 24. Rxd4 {[%clk 0:00:30.1]} 24... Qxd4 {[%clk
0:01:25.5]} 25. Be3 {[%clk 0:00:31.5]} 25... Qa4 {[%clk 0:01:20]} 26. Qc7 {[%clk
0:00:31]} 26... b6 {[%clk 0:01:08.1]} 27. h3 {[%clk 0:00:25.7]} 27... Qd7 {[%clk
0:01:06.2]} 28. Qc4 {[%clk 0:00:21.9]} 28... Qd5 {[%clk 0:01:02.9]} 29. Qh4
{[%clk 0:00:22.6]} 29... Re4 {[%clk 0:00:59.4]} 30. Qg3 {[%clk 0:00:23.5]} 30...
Qe5 {[%clk 0:00:58.1]} 31. Qf3 {[%clk 0:00:23.4]} 31... Nd5 {[%clk 0:00:56.3]}
32. Bc1 {[%clk 0:00:19.5]} 32... Re1 {[%clk 0:00:55.3]} 33. Qd3 {[%clk 0:00:13]}
33... Rxf1+ {[%clk 0:00:51.9]} 34. Qxf1 {[%clk 0:00:14.9]} 34... Qd4 {[%clk
0:00:49.4]} 35. Qe2 {[%clk 0:00:13.9]} 35... Kh7 {[%clk 0:00:42.5]} 36. Kh2
{[%clk 0:00:14.8]} 36... f6 {[%clk 0:00:40.7]} 37. g3 {[%clk 0:00:15.6]} 37...
a5 {[%clk 0:00:38.1]} 38. Qc2+ {[%clk 0:00:08.1]} 38... g6 {[%clk 0:00:33.9]}
39. Kg2 {[%clk 0:00:08.3]} 39... f5 {[%clk 0:00:31.8]} 40. Qc8 {[%clk
0:00:06.6]} 40... Qe4+ {[%clk 0:00:29.9]} 41. Kh2 {[%clk 0:00:07.9]} 41... Qe7
{[%clk 0:00:28.5]} 42. Qc6 {[%clk 0:00:08.3]} 42... Qf7 {[%clk 0:00:26.4]} 43.
Bd2 {[%clk 0:00:08.7]} 43... g5 {[%clk 0:00:25.4]} 44. Qd6 {[%clk 0:00:09.7]}
44... f4 {[%clk 0:00:24.6]} 45. g4 {[%clk 0:00:10.3]} 45... Nf6 {[%clk
0:00:21.2]} 46. Bc3 {[%clk 0:00:10.6]} 46... Ne4 {[%clk 0:00:19.1]} 47. Qd3
{[%clk 0:00:10.3]} 47... Qe6 {[%clk 0:00:17.9]} 48. Kg2 {[%clk 0:00:09.3]} 48...
Kg8 {[%clk 0:00:16.6]} 49. Bd4 {[%clk 0:00:10.3]} 49... Nc5 {[%clk 0:00:14.2]}
50. Qd2 {[%clk 0:00:07.1]} 50... Qe4+ {[%clk 0:00:13.3]} 51. f3 {[%clk
0:00:07.5]} 51... Qd3 {[%clk 0:00:12.6]} 52. Qf2 {[%clk 0:00:06]} 52... Nb3
{[%clk 0:00:09]} 53. Bc3 {[%clk 0:00:06.7]} 53... Nc1 {[%clk 0:00:08.4]} 54.
Qxb6 {[%clk 0:00:06.9]} 54... Qe2+ {[%clk 0:00:06.6]} 55. Qf2 {[%clk 0:00:07.6]}
55... Qxf2+ {[%clk 0:00:05.3]} 56. Kxf2 {[%clk 0:00:08.8]} 56... a4 {[%clk
0:00:04.2]} 57. Ke1 {[%clk 0:00:08.8]} 57... Nd3+ {[%clk 0:00:03]} 58. Ke2
{[%clk 0:00:09.4]} 58... Nc5 {[%clk 0:00:02.9]} 59. Bb4 {[%clk 0:00:09.1]} 59...
Nb3 {[%clk 0:00:02.3]} 60. Kd3 {[%clk 0:00:09.2]} 60... Kf7 {[%clk 0:00:02.2]}
61. Kc4 {[%clk 0:00:08.6]} 61... Ke6 {[%clk 0:00:02.3]} 62. Bc3 {[%clk
0:00:08.9]} 1-0

[Event "*** Titled Tuesday Blitz"]
[Site "Chess.com"]
[Date "2019.06.04"]
[Round "2"]
[White "LoinOfTheNorth"]
[Black "Drags95"]
[Result "0-1"]
[WhiteElo "2675"]
[BlackElo "2802"]
[TimeControl "180+2"]
[EndTime "13:26:08 PDT"]
[Termination "Drags95 won by resignation"]

1. d4 {[%clk 0:03:01.9]} 1... Nf6 {[%clk 0:03:00.5]} 2. c4 {[%clk 0:03:02.4]}
2... e6 {[%clk 0:03:01.9]} 3. Nf3 {[%clk 0:03:02.9]} 3... d5 {[%clk 0:03:01.9]}
4. g3 {[%clk 0:03:03.6]} 4... Bb4+ {[%clk 0:03:00.8]} 5. Nbd2 {[%clk 0:03:04.3]}
5... dxc4 {[%clk 0:02:58.1]} 6. Bg2 {[%clk 0:03:05.1]} 6... b5 {[%clk
0:02:54.1]} 7. O-O {[%clk 0:03:05.8]} 7... a5 {[%clk 0:02:50.8]} 8. a4 {[%clk
0:02:52.3]} 8... c6 {[%clk 0:02:43.4]} 9. Ne5 {[%clk 0:02:44.5]} 9... Ra6 {[%clk
0:02:44.7]} 10. Ndf3 {[%clk 0:02:45]} 10... O-O {[%clk 0:02:43.6]} 11. Bg5
{[%clk 0:02:40.9]} 11... h6 {[%clk 0:02:42.9]} 12. Bxf6 {[%clk 0:02:37.7]} 12...
Qxf6 {[%clk 0:02:44.8]} 13. b3 {[%clk 0:02:37.2]} 13... c3 {[%clk 0:02:40.6]}
14. Qd3 {[%clk 0:02:37.9]} 14... Rb6 {[%clk 0:02:33.1]} 15. Qe3 {[%clk 0:02:28]}
15... Nd7 {[%clk 0:02:26.3]} 16. d5 {[%clk 0:02:23]} 16... c5 {[%clk 0:02:12.9]}
17. Ng4 {[%clk 0:01:51.8]} 17... Qf5 {[%clk 0:02:05.2]} 18. Nfe5 {[%clk
0:01:38.6]} 18... Nxe5 {[%clk 0:02:03.4]} 19. Nxe5 {[%clk 0:01:38.9]} 19... exd5
{[%clk 0:02:01.6]} 20. Bxd5 {[%clk 0:01:39.9]} 20... Be6 {[%clk 0:02:01]} 21.
Be4 {[%clk 0:01:39.6]} 21... Qf6 {[%clk 0:02:00.2]} 22. axb5 {[%clk 0:01:40]}
22... Rxb5 {[%clk 0:01:47.2]} 23. Bd3 {[%clk 0:01:39.2]} 23... Rbb8 {[%clk
0:01:45.1]} 24. Qe4 {[%clk 0:01:25.5]} 24... g6 {[%clk 0:01:45.1]} 25. f4 {[%clk
0:01:17.2]} 25... Rfe8 {[%clk 0:01:42.3]} 26. Qc6 {[%clk 0:01:15.6]} 26... Kg7
{[%clk 0:01:38.6]} 27. Bc2 {[%clk 0:01:08.2]} 27... Rbd8 {[%clk 0:01:33.3]} 28.
Qf3 {[%clk 0:00:39]} 28... Rd2 {[%clk 0:01:25.8]} 29. Rfc1 {[%clk 0:00:34.3]}
29... Bd5 {[%clk 0:01:22.7]} 30. Be4 {[%clk 0:00:29.1]} 30... Bxb3 {[%clk
0:01:12.8]} 31. Rxc3 {[%clk 0:00:26.1]} 31... Bxc3 {[%clk 0:01:13.5]} 32. Qxc3
{[%clk 0:00:28]} 32... Rxe2 {[%clk 0:01:07.9]} 33. Bf3 {[%clk 0:00:09.4]} 33...
R2xe5 {[%clk 0:01:01]} 34. fxe5 {[%clk 0:00:10.7]} 34... Qxe5 {[%clk 0:01:02.2]}
35. Qxe5+ {[%clk 0:00:11]} 35... Rxe5 {[%clk 0:01:04.1]} 36. Rxa5 {[%clk
0:00:12.5]} 36... Kf6 {[%clk 0:01:03.2]} 37. Ra6+ {[%clk 0:00:13.3]} 37... Be6
{[%clk 0:01:04.6]} 38. Rc6 {[%clk 0:00:14]} 38... Re3 {[%clk 0:00:58.6]} 39. Kf2
{[%clk 0:00:14.2]} 39... Rc3 {[%clk 0:00:59.7]} 40. Bd5 {[%clk 0:00:13.2]} 40...
Ke5 {[%clk 0:00:58.8]} 41. Bxe6 {[%clk 0:00:14.5]} 41... fxe6 {[%clk 0:01:00.4]}
42. Rc8 {[%clk 0:00:15.9]} 42... c4 {[%clk 0:01:01.7]} 43. Rg8 {[%clk
0:00:15.1]} 43... g5 {[%clk 0:01:02.6]} 44. Rg6 {[%clk 0:00:16]} 44... Rd3
{[%clk 0:01:03.2]} 45. Rxh6 {[%clk 0:00:15.8]} 45... c3 {[%clk 0:01:04.7]} 46.
Rh8 {[%clk 0:00:17.4]} 46... Rd2+ {[%clk 0:01:04.9]} 47. Ke3 {[%clk 0:00:18.3]}
47... Rg2 {[%clk 0:00:52.3]} 48. Rc8 {[%clk 0:00:17.2]} 48... c2 {[%clk
0:00:50.7]} 49. h4 {[%clk 0:00:14.8]} 49... Rxg3+ {[%clk 0:00:49.7]} 50. Kf2
{[%clk 0:00:16.2]} 50... gxh4 {[%clk 0:00:44.3]} 51. Rxc2 {[%clk 0:00:17.7]}
51... Rg4 {[%clk 0:00:43.6]} 52. Rc8 {[%clk 0:00:18.9]} 52... Rf4+ {[%clk
0:00:43.9]} 53. Ke3 {[%clk 0:00:19.8]} 53... Ra4 {[%clk 0:00:44.1]} 54. Rc5+
{[%clk 0:00:19.9]} 54... Kd6 {[%clk 0:00:44.7]} 55. Rh5 {[%clk 0:00:21.5]} 55...
e5 {[%clk 0:00:42.1]} 56. Rh8 {[%clk 0:00:21.5]} 56... Kd5 {[%clk 0:00:43.1]}
57. Rd8+ {[%clk 0:00:22.9]} 57... Ke6 {[%clk 0:00:44.8]} 58. Re8+ {[%clk
0:00:24.5]} 58... Kf5 {[%clk 0:00:46.2]} 59. Rf8+ {[%clk 0:00:26.1]} 59... Kg4
{[%clk 0:00:47.5]} 60. Re8 {[%clk 0:00:26.2]} 60... e4 {[%clk 0:00:44]} 61. Rg8+
{[%clk 0:00:27.3]} 61... Kh3 {[%clk 0:00:45.1]} 62. Rg7 {[%clk 0:00:22.5]} 62...
Kh2 {[%clk 0:00:46.1]} 63. Rg4 {[%clk 0:00:22]} 63... h3 {[%clk 0:00:47.1]} 64.
Rg8 {[%clk 0:00:23.6]} 64... Kh1 {[%clk 0:00:48.2]} 65. Rg7 {[%clk 0:00:23.8]}
65... h2 {[%clk 0:00:49.5]} 66. Rg8 {[%clk 0:00:24.8]} 66... Ra2 {[%clk
0:00:47.6]} 67. Kxe4 {[%clk 0:00:25.6]} 67... Rg2 {[%clk 0:00:48.4]} 68. Ra8
{[%clk 0:00:20.6]} 68... Rg3 {[%clk 0:00:34.8]} 69. Kf4 {[%clk 0:00:20.4]} 69...
Kg2 {[%clk 0:00:34.8]} 70. Ra2+ {[%clk 0:00:10.6]} 70... Kh3 {[%clk 0:00:34.8]}
71. Ra8 {[%clk 0:00:12]} 71... Rg1 {[%clk 0:00:30]} 72. Rh8+ {[%clk 0:00:11.2]}
72... Kg2 {[%clk 0:00:31]} 73. Rg8+ {[%clk 0:00:12.7]} 73... Kf2 {[%clk
0:00:32]} 74. Rh8 {[%clk 0:00:13.2]} 74... h1=Q {[%clk 0:00:32.9]} 75. Rxh1
{[%clk 0:00:15.1]} 0-1

[Event "*** Titled Tuesday Blitz"]
[Site "Chess.com"]
[Date "2019.06.04"]
[Round "2"]
[White "Torrentec"]
[Black "vladimirdamjanovic"]
[Result "1-0"]
[WhiteElo "2422"]
[BlackElo "2492"]
[TimeControl "180+2"]
[EndTime "13:26:14 PDT"]
[Termination "Torrentec won on time"]

1. e4 {[%clk 0:03:01.9]} 1... c5 {[%clk 0:03:00.9]} 2. Nf3 {[%clk 0:03:01]} 2...
d6 {[%clk 0:03:02.2]} 3. Bb5+ {[%clk 0:03:00.6]} 3... Bd7 {[%clk 0:03:02.7]} 4.
Bxd7+ {[%clk 0:03:01.5]} 4... Qxd7 {[%clk 0:03:04.6]} 5. O-O {[%clk 0:03:02.8]}
5... g5 {[%clk 0:03:06.1]} 6. Nxg5 {[%clk 0:03:00.2]} 6... Nf6 {[%clk
0:03:07.3]} 7. Qf3 {[%clk 0:02:53.8]} 7... Nc6 {[%clk 0:03:03.8]} 8. c3 {[%clk
0:02:43.3]} 8... Rg8 {[%clk 0:03:04.6]} 9. d3 {[%clk 0:02:41.6]} 9... Ne5 {[%clk
0:02:49.3]} 10. Qf5 {[%clk 0:02:25.9]} 10... Qxf5 {[%clk 0:02:39.5]} 11. exf5
{[%clk 0:02:27.8]} 11... Nxd3 {[%clk 0:02:37.3]} 12. Be3 {[%clk 0:02:14]} 12...
Nxb2 {[%clk 0:02:27.7]} 13. Nd2 {[%clk 0:02:15.1]} 13... Na4 {[%clk 0:02:12.1]}
14. Rfc1 {[%clk 0:02:04.9]} 14... Bg7 {[%clk 0:01:45.8]} 15. Rab1 {[%clk
0:02:04.3]} 15... b6 {[%clk 0:01:39.6]} 16. c4 {[%clk 0:02:00]} 16... Ng4 {[%clk
0:01:25.9]} 17. Nge4 {[%clk 0:01:51.6]} 17... Nxe3 {[%clk 0:01:19.7]} 18. fxe3
{[%clk 0:01:53.5]} 18... Bh6 {[%clk 0:01:15.4]} 19. Kf2 {[%clk 0:01:53]} 19...
O-O-O {[%clk 0:01:13]} 20. Rb3 {[%clk 0:01:47.8]} 20... a6 {[%clk 0:01:06.6]}
21. Ra3 {[%clk 0:01:30.5]} 21... b5 {[%clk 0:01:07.4]} 22. cxb5 {[%clk
0:01:31.7]} 22... axb5 {[%clk 0:01:09.3]} 23. Rb1 {[%clk 0:01:32.7]} 23... Kc7
{[%clk 0:01:06.8]} 24. Rxb5 {[%clk 0:01:30]} 24... Ra8 {[%clk 0:01:07.8]} 25.
Nc4 {[%clk 0:01:19.3]} 25... Nb6 {[%clk 0:00:41.1]} 26. Rxa8 {[%clk 0:01:01]}
26... Nxa8 {[%clk 0:00:43]} 27. f6 {[%clk 0:00:55.5]} 27... Bf8 {[%clk
0:00:37.7]} 28. Nc3 {[%clk 0:00:51.7]} 28... e6 {[%clk 0:00:37.4]} 29. a4 {[%clk
0:00:49.7]} 29... Rg6 {[%clk 0:00:29.6]} 30. Ra5 {[%clk 0:00:43.8]} 30... Rxf6+
{[%clk 0:00:22.5]} 31. Ke2 {[%clk 0:00:45]} 31... Nb6 {[%clk 0:00:23.1]} 32.
Nb5+ {[%clk 0:00:45]} 32... Kc6 {[%clk 0:00:21.4]} 33. Ra6 {[%clk 0:00:45]}
33... Kd5 {[%clk 0:00:20.8]} 34. Nxb6+ {[%clk 0:00:45.3]} 34... Ke4 {[%clk
0:00:21.5]} 35. Nc3+ {[%clk 0:00:44.5]} 35... Kf5 {[%clk 0:00:21.3]} 36. Nc4
{[%clk 0:00:44.9]} 36... d5 {[%clk 0:00:19.9]} 37. Nd6+ {[%clk 0:00:44.8]} 37...
Bxd6 {[%clk 0:00:20.3]} 38. Rxd6 {[%clk 0:00:46.7]} 38... Rh6 {[%clk 0:00:20.3]}
39. h3 {[%clk 0:00:47.2]} 39... Rg6 {[%clk 0:00:21.1]} 40. g4+ {[%clk
0:00:47.8]} 40... Ke5 {[%clk 0:00:21.5]} 41. Rd7 {[%clk 0:00:48.2]} 41... f5
{[%clk 0:00:22.1]} 42. gxf5 {[%clk 0:00:46.7]} 42... Kxf5 {[%clk 0:00:23.6]} 43.
Rxh7 {[%clk 0:00:47.4]} 43... Rg2+ {[%clk 0:00:24.5]} 44. Kf3 {[%clk 0:00:47.1]}
44... Rc2 {[%clk 0:00:23.9]} 45. Ne2 {[%clk 0:00:45.5]} 45... Ra2 {[%clk
0:00:23.6]} 46. Ra7 {[%clk 0:00:45.5]} 46... e5 {[%clk 0:00:23.2]} 47. Ng3+
{[%clk 0:00:46.7]} 47... Ke6 {[%clk 0:00:24.1]} 48. h4 {[%clk 0:00:47.4]} 48...
e4+ {[%clk 0:00:23.7]} 49. Kg4 {[%clk 0:00:47.3]} 49... c4 {[%clk 0:00:24.1]}
50. h5 {[%clk 0:00:46]} 50... c3 {[%clk 0:00:25]} 51. Rc7 {[%clk 0:00:46.9]}
51... c2 {[%clk 0:00:25.1]} 52. h6 {[%clk 0:00:46.4]} 52... Kd6 {[%clk
0:00:24.7]} 53. Rc3 {[%clk 0:00:47.3]} 53... Rxa4 {[%clk 0:00:24.9]} 54. Rxc2
{[%clk 0:00:48.2]} 54... Ra8 {[%clk 0:00:25.6]} 55. Rh2 {[%clk 0:00:46.7]} 55...
Ke5 {[%clk 0:00:25.8]} 56. h7 {[%clk 0:00:45.7]} 56... Rh8 {[%clk 0:00:26.8]}
57. Nf5 {[%clk 0:00:46.6]} 57... Kf6 {[%clk 0:00:26.2]} 58. Kf4 {[%clk
0:00:47.5]} 58... Kg6 {[%clk 0:00:27.4]} 59. Ne7+ {[%clk 0:00:47]} 59... Kf7
{[%clk 0:00:28.2]} 60. Nxd5 {[%clk 0:00:48.9]} 60... Kg7 {[%clk 0:00:29.1]} 61.
Kxe4 {[%clk 0:00:49.3]} 61... Re8+ {[%clk 0:00:28.9]} 62. Kf5 {[%clk 0:00:50.2]}
62... Kh8 {[%clk 0:00:30.8]} 63. e4 {[%clk 0:00:49]} 63... Rf8+ {[%clk
0:00:31.7]} 64. Nf6 {[%clk 0:00:48.8]} 64... Rxf6+ {[%clk 0:00:32.6]} 65. Ke5
{[%clk 0:00:49.8]} 65... Rf7 {[%clk 0:00:32.3]} 66. Kd6 {[%clk 0:00:50.3]} 66...
Rf8 {[%clk 0:00:26.5]} 67. e5 {[%clk 0:00:50.3]} 67... Rd8+ {[%clk 0:00:27.7]}
68. Ke7 {[%clk 0:00:50.7]} 68... Rd5 {[%clk 0:00:28.9]} 69. e6 {[%clk
0:00:51.8]} 69... Rd1 {[%clk 0:00:29.1]} 70. Ke8 {[%clk 0:00:49.9]} 70... Rd3
{[%clk 0:00:27.8]} 71. e7 {[%clk 0:00:50.5]} 71... Rf3 {[%clk 0:00:23.9]} 72.
Rd2 {[%clk 0:00:47.2]} 72... Kxh7 {[%clk 0:00:23.5]} 73. Kd8 {[%clk 0:00:48.1]}
1-0